bitfinex/quotes_ETHUSD_20230113
["timestamp","ask_amount","ask_price","bid_price","bid_amount"]
[1673582459785,0.02592627,1414.8,1414.7,36.6247754]
[1673582460204,0.02592627,1414.8,1414.7,35.04858163]
[1673582460417,0.02592627,1414.8,1414.7,31.44224891]
[1673582460575,0.02592627,1414.8,1414.7,33.01838343]
[1673582461522,0.02592627,1414.8,1414.7,29.42071433]
[1673582461862,0.02592627,1414.8,1414.7,31.52438343]
[1673582462204,0.02592627,1414.8,1414.7,29.42071433]
[1673582463264,0.02592627,1414.8,1414.7,29.77996361]
[1673582463582,0.02592627,1414.8,1414.7,21.13519909]
[1673582463889,0.02592627,1414.8,1414.7,20.05953679]
[1673582464041,0.02592627,1414.8,1414.7,28.20382909]
[1673582467952,0.02592627,1414.8,1414.7,29.77996361]
[1673582468344,0.02592627,1414.8,1414.7,28.20382909]
[1673582469451,0.02592627,1414.8,1414.7,26.70082909]
[1673582470977,0.02592627,1414.8,1414.7,28.96855615]
[1673582471239,0.02592627,1414.8,1414.7,27.22612179]
[1673582471452,0.02592627,1414.8,1414.7,28.27696644]
[1673582471739,0.02592627,1414.8,1414.7,27.22612179]
[1673582472166,0.02592627,1414.8,1414.7,28.27695693]
[1673582472360,0.02592627,1414.8,1414.7,27.22612179]
[1673582472764,0.02592627,1414.8,1414.7,28.2769524]
[1673582472975,0.02592627,1414.8,1414.7,27.22612179]
[1673582473501,0.02592627,1414.8,1414.7,28.27696566]
[1673582473755,0.02592627,1414.8,1414.7,27.22612179]
[1673582473965,0.02592627,1414.8,1414.7,28.27697936]
[1673582476422,0.02592627,1414.8,1414.7,27.22612179]
[1673582476635,0.02592627,1414.8,1414.7,28.27699613]
[1673582477019,0.02592627,1414.8,1414.7,29.3279087]
[1673582477433,0.02592627,1414.8,1414.7,28.27699613]
[1673582478678,0.02592627,1414.8,1414.7,28.96858867]
[1673582478888,0.02592627,1414.8,1414.7,30.01961049]
[1673582479993,0.02592627,1414.8,1414.7,30.01971616]
[1673582483141,0.0231302,1414.8,1414.7,30.01971616]
[1673582484786,0.0231302,1414.8,1414.7,28.96858867]
[1673582485033,0.0231302,1414.8,1414.7,30.02024597]
[1673582485244,0.0231302,1414.8,1414.7,30.02025053]
[1673582485473,0.0231302,1414.8,1414.7,28.27699613]
[1673582487319,0.0231302,1414.8,1414.7,30.38066523]
[1673582487529,0.0231302,1414.8,1414.7,28.27699613]
[1673582489490,0.0231302,1414.8,1414.7,30.29653071]
[1673582489803,0.0231302,1414.8,1414.7,31.87540405]
[1673582490170,0.0231302,1414.8,1414.7,31.87541645]
[1673582490412,0.0231302,1414.8,1414.7,31.87541864]
[1673582492641,0.0231302,1414.8,1414.7,28.27974954]
[1673582494120,1.0551302,1414.8,1414.7,15.19522903]
[1673582494313,1.2851302,1414.8,1414.7,13.06682724]
[1673582494722,1.2851302,1414.8,1414.7,14.11956746]
[1673582495064,1.2851302,1414.8,1414.7,13.06682724]
[1673582495369,0.2531302,1414.8,1414.7,13.06682724]
[1673582495582,0.0231302,1414.8,1414.7,13.06682724]
[1673582495732,0.0231302,1414.8,1414.7,20.13545724]
[1673582495944,0.0231302,1414.8,1414.7,22.63545724]
[1673582496276,0.0231302,1414.8,1414.7,34.38641864]
[1673582496989,0.0231302,1414.8,1414.7,34.3864108]
[1673582497202,0.0231302,1414.8,1414.7,34.38640963]
[1673582497728,0.0231302,1414.8,1414.7,32.80753071]
[1673582497943,0.00472183,1414.8,1414.7,33.32352744]
[1673582498478,0.00472183,1414.8,1414.7,35.4285044]
[1673582499861,0.00472183,1414.8,1414.7,33.32352744]
[1673582501142,0.00472183,1414.8,1414.7,35.42843569]
[1673582502383,0.00472183,1414.8,1414.7,30.30876986]
[1673582502804,0.00472183,1414.8,1414.7,30.81209632]
[1673582503228,0.00472183,1414.8,1414.7,31.88771668]
[1673582503830,0.00472183,1414.8,1414.7,23.24013986]
[1673582504089,0.00072183,1414.8,1414.7,29.34647258]
[1673582504284,0.00072183,1414.8,1414.7,36.93619444]
[1673582504454,0.00072183,1414.8,1414.7,32.8923684]
[1673582505099,0.00072183,1414.8,1414.7,35.5232577]
[1673582508026,0.00072183,1414.8,1414.7,31.5202577]
[1673582508246,0.00072183,1414.8,1414.7,30.30227258]
[1673582508498,0.00072183,1414.8,1414.7,32.93316188]
[1673582508672,0.00072183,1414.8,1414.7,34.43508363]
[1673582510388,0.00072183,1414.8,1414.7,40.65841646]
[1673582510602,14.72570883,1415.2,1414.8,2.50127817]
[1673582510603,0.06433626,1415.2,1414.8,2.50127817]
[1673582510821,0.18776042,1415.3,1415.1,2.62882668]
[1673582511035,0.18776042,1415.3,1415.2,22.60225242]
[1673582511340,0.18776042,1415.3,1415.2,25.61825242]
[1673582511809,0.18776042,1415.3,1415.2,24.56682497]
[1673582512557,0.18776042,1415.3,1415.2,25.61825242]
[1673582513926,0.18776042,1415.3,1415.2,24.56682497]
[1673582514357,0.18776042,1415.3,1415.2,27.06682497]
[1673582514558,0.18776042,1415.3,1415.2,25.61825242]
[1673582514807,0.18776042,1415.3,1415.2,24.56682497]
[1673582517090,0.18776042,1415.3,1415.2,27.06682497]
[1673582517524,0.18776042,1415.3,1415.2,28.14248727]
[1673582517739,0.18776042,1415.3,1415.2,17.50069497]
[1673582517953,0.18776042,1415.3,1415.2,24.21439]
[1673582518369,0.18776042,1415.3,1415.2,24.92909373]
[1673582518754,0.18776042,1415.3,1415.2,24.92907871]
[1673582518967,0.18776042,1415.3,1415.2,24.21439]
[1673582521496,0.18776042,1415.3,1415.2,27.42867595]
[1673582521960,0.18776042,1415.3,1415.2,24.92867595]
[1673582523313,0.18776042,1415.3,1415.2,28.92267595]
[1673582523527,0.18776042,1415.3,1415.2,31.60502266]
[1673582523969,0.01649001,1415.3,1415.2,31.60502266]
[1673582524189,0.01649001,1415.3,1415.2,30.15645011]
[1673582524485,0.01649001,1415.3,1415.2,29.10502266]
[1673582524702,0.01649001,1415.3,1415.2,27.91967595]
[1673582526852,0.01649001,1415.3,1415.2,24.92867595]
[1673582527309,0.01649001,1415.3,1415.2,24.21439]
[1673582527732,0.01649001,1415.3,1415.2,24.92101565]
[1673582528328,0.01649001,1415.3,1415.2,26.71439]
[1673582528538,0.01649001,1415.3,1415.2,24.92096766]
[1673582529193,0.01649001,1415.3,1415.2,24.21439]
[1673582529531,0.01649001,1415.3,1415.2,24.92098017]
[1673582530662,0.01649001,1415.3,1415.2,24.21439]
[1673582531058,0.01649001,1415.3,1415.2,7.08213]
[1673582531059,1.04849001,1415.3,1415.2,7.08213]
[1673582531269,1.55254007,1415.3,1415.2,0.016]
[1673582531534,1.55254007,1415.3,1415.1,21.21505]
[1673582531930,1.724,1415.2,1415.1,0.016]
[1673582532153,1.724,1415.2,1415.0,0.016]
[1673582532154,0.23,1415.2,1415.0,0.016]
[1673582532383,0.23,1415.2,1415.0,10.06695]
[1673582532599,2.86085763,1415.2,1415.0,10.08295]
[1673582532785,2.86085763,1415.2,1415.0,3.016]
[1673582533000,2.86085763,1415.2,1415.0,3.0]
[1673582533649,2.86085763,1415.2,1414.9,14.20078]
[1673582533825,2.86085763,1415.2,1414.9,7.08339]
[1673582534037,0.28608576,1415.1,1414.9,7.08339]
[1673582534278,0.23,1415.0,1414.9,7.08339]
[1673582534619,0.23,1415.0,1414.9,0.016]
[1673582534620,3.222,1415.0,1414.9,0.016]
[1673582534930,3.222,1415.0,1414.8,1.19880468]
[1673582534931,17.334,1415.0,1414.8,0.00127817]
[1673582535150,1.7334,1414.9,1414.8,14.13725817]
[1673582535296,0.06433626,1415.0,1414.9,1.55568585]
[1673582535661,0.01649001,1415.3,1414.9,27.68654004]
[1673582535832,0.01649001,1415.3,1415.2,17.12726]
[1673582536053,0.01649001,1415.3,1415.2,20.24328638]
[1673582536259,0.01649001,1415.3,1415.2,20.91369479]
[1673582536450,0.01649001,1415.3,1415.2,19.91369479]
[1673582537729,0.01649001,1415.3,1415.2,19.86369479]
[1673582537935,0.01649001,1415.3,1415.2,22.36369479]
[1673582538341,0.01649001,1415.3,1415.2,19.86369479]
[1673582538798,0.01649001,1415.3,1415.2,22.36369479]
[1673582539185,0.01649001,1415.3,1415.2,29.42982479]
[1673582539438,0.01649001,1415.3,1415.2,29.85976339]
[1673582539663,0.01649001,1415.3,1415.2,29.42982479]
[1673582539825,0.01649001,1415.3,1415.2,30.5301718]
[1673582541604,0.01649001,1415.3,1415.2,31.57753303]
[1673582542050,0.01649001,1415.3,1415.2,36.68686575]
[1673582542582,0.00262257,1415.3,1415.2,36.68686575]
[1673582544138,0.00262257,1415.3,1415.2,38.2579076]
[1673582544369,0.00262257,1415.3,1415.2,36.68686575]
[1673582545006,0.00262257,1415.3,1415.2,38.2579076]
[1673582545412,0.00262257,1415.3,1415.2,37.58749919]
[1673582545623,0.00262257,1415.3,1415.2,38.2579076]
[1673582547540,0.00262257,1415.3,1415.2,37.21054637]
[1673582548141,0.00262257,1415.3,1415.2,31.10421365]
[1673582548384,0.00262257,1415.3,1415.2,32.15308519]
[1673582548595,0.00262257,1415.3,1415.2,26.53369633]
[1673582548986,0.00262257,1415.3,1415.2,25.48482479]
[1673582549345,0.00262257,1415.3,1415.2,26.53369633]
[1673582549598,0.00262257,1415.3,1415.2,25.86328792]
[1673582550286,0.00262257,1415.3,1415.2,27.43432977]
[1673582552483,2.05662257,1415.3,1415.2,11.73102792]
[1673582552807,2.51208588,1415.3,1415.2,0.61602638]
[1673582553022,2.51208588,1415.3,1415.2,0.60002638]
[1673582554166,2.51208588,1415.3,1415.2,3.60002638]
[1673582556280,2.51208588,1415.3,1415.1,0.066]
[1673582556494,0.48120859,1415.2,1415.1,3.0]
[1673582556646,0.48120859,1415.2,1415.1,3.52725637]
[1673582556860,2.98120859,1415.2,1415.1,3.52725637]
[1673582557320,2.98120859,1415.2,1415.1,0.52725637]
[1673582557920,2.98120859,1415.2,1415.0,15.30886265]
[1673582558295,2.98120859,1415.2,1415.0,7.14301111]
[1673582558296,0.29812086,1415.1,1415.0,7.14301111]
[1673582558444,0.29812086,1415.1,1415.0,10.67014571]
[1673582559438,0.29812086,1415.1,1415.0,10.6099046]
[1673582560693,0.48120859,1415.2,1415.0,11.65877614]
[1673582560925,0.48120859,1415.2,1415.1,0.5271346]
[1673582561127,0.48120859,1415.2,1415.0,18.24860154]
[1673582561277,0.48120859,1415.2,1415.0,18.19860154]
[1673582562348,0.48120859,1415.2,1415.0,17.14973]
[1673582562884,0.48120859,1415.2,1415.0,10.08277]
[1673582563100,1.196,1415.1,1415.0,0.016]
[1673582563288,3.12625286,1415.1,1414.8,1.11487154]
[1673582563484,0.23,1415.0,1414.9,0.52702475]
[1673582563694,0.22616727,1415.0,1414.9,0.52702475]
[1673582563906,0.22616727,1415.0,1414.8,1.04887154]
[1673582563907,3.92216727,1415.0,1414.8,1.04887154]
[1673582564163,0.39221673,1414.9,1414.7,2.61991339]
[1673582564382,0.39221673,1414.9,1414.7,3.14680033]
[1673582564728,0.39221673,1414.9,1414.8,3.52688694]
[1673582564900,0.39221673,1414.9,1414.8,0.52688694]
[1673582565951,11.78280883,1415.2,1414.8,0.52688694]
[1673582566113,8.27737,1415.0,1414.7,4.11487154]
[1673582566329,22.46433,1415.0,1414.7,4.04887154]
[1673582566583,2.5,1414.9,1414.7,3.0]
[1673582566797,0.25,1414.8,1414.7,3.0]
[1673582567705,0.25,1414.8,1414.6,4.11487154]
[1673582568015,0.25,1414.8,1414.6,4.04887154]
[1673582568501,7.31817,1414.8,1414.6,3.0]
[1673582568768,0.731817,1414.7,1414.6,3.0]
[1673582570784,0.316,1414.8,1414.7,0.58625871]
[1673582570994,23.3391,1414.9,1414.7,0.58625871]
[1673582571213,23.3391,1414.9,1414.7,7.65488871]
[1673582571407,23.3391,1414.9,1414.7,7.72088871]
[1673582571732,7.13374,1414.9,1414.7,0.65225871]
[1673582572053,0.713374,1414.8,1414.7,0.58625871]
[1673582572424,0.943374,1414.8,1414.7,0.58625871]
[1673582573092,8.011504,1414.8,1414.7,0.58625871]
[1673582573253,8.077504,1414.8,1414.7,0.58625871]
[1673582573724,15.145634,1414.8,1414.7,0.58625871]
[1673582574525,22.213764,1414.8,1414.7,0.58625871]
[1673582575834,25.82009672,1414.8,1414.7,0.58625871]
[1673582582460,27.00609672,1414.8,1414.7,0.58625871]
[1673582583353,28.20209672,1414.8,1414.7,0.58625871]
[1673582584007,38.87309672,1414.8,1414.7,0.58625871]
[1673582585172,28.20209672,1414.8,1414.7,0.58625871]
[1673582586557,38.07239672,1414.8,1414.7,0.58625871]
[1673582589531,38.02239672,1414.8,1414.7,0.58625871]
[1673582589835,28.15209672,1414.8,1414.7,0.58625871]
[1673582590365,38.95389672,1414.8,1414.7,0.58625871]
[1673582590943,28.15209672,1414.8,1414.7,5.871e-05]
[1673582591205,38.95389672,1414.8,1414.7,5.871e-05]
[1673582594329,40.01300555,1414.8,1414.7,5.871e-05]
[1673582594673,41.28805709,1414.8,1414.7,5.871e-05]
[1673582594958,38.95389672,1414.8,1414.7,5.871e-05]
[1673582595129,41.28805604,1414.8,1414.7,5.871e-05]
[1673582595435,40.01300555,1414.8,1414.7,5.871e-05]
[1673582595868,38.95389672,1414.8,1414.7,5.871e-05]
[1673582596440,40.01300555,1414.8,1414.7,5.871e-05]
[1673582596650,41.2883733,1414.8,1414.7,5.871e-05]
[1673582596907,50.36522997,1414.8,1414.7,5.871e-05]
[1673582597446,50.36522997,1414.8,1414.4,0.03269377]
[1673582597447,2.5,1414.7,1414.4,0.03269377]
[1673582597649,30.77852,1414.5,1414.4,0.03269377]
[1673582597810,34.68085272,1414.5,1414.4,0.03269377]
[1673582602440,32.18085272,1414.5,1414.4,0.03269377]
[1673582602881,32.18085272,1414.5,1414.4,0.02909313]
[1673582620440,33.23996155,1414.5,1414.4,0.02909313]
[1673582620668,39.02770365,1414.5,1414.4,0.02909313]
[1673582621333,39.02770465,1414.5,1414.4,0.02909313]
[1673582621892,37.7502627,1414.5,1414.4,0.02909313]
[1673582622356,39.02775997,1414.5,1414.4,0.02909313]
[1673582622547,37.7502627,1414.5,1414.4,0.02909313]
[1673582624253,39.02805849,1414.5,1414.4,0.02909313]
[1673582624426,40.64303576,1414.5,1414.4,0.02909313]
[1673582624642,39.02805849,1414.5,1414.4,0.02909313]
[1673582626149,40.64356195,1414.5,1414.4,0.02909313]
[1673582627585,39.02805849,1414.5,1414.4,0.02909313]
[1673582627789,40.64355998,1414.5,1414.4,0.02909313]
[1673582628019,39.02805849,1414.5,1414.4,0.02909313]
[1673582628238,42.234391,1414.5,1414.4,0.02909313]
[1673582628583,12.36572109,1414.5,1414.4,0.02909313]
[1673582628742,34.51775734,1414.5,1414.4,0.02909313]
[1673582628951,36.13393994,1414.5,1414.4,0.02909313]
[1673582629268,34.51775734,1414.5,1414.4,0.02909313]
[1673582629453,34.51775734,1414.5,1414.4,0.49944411]
[1673582629669,33.23996155,1414.5,1414.4,0.49944411]
[1673582629988,37.7502627,1414.5,1414.4,0.49944411]
[1673582631692,36.69115387,1414.5,1414.4,0.49944411]
[1673582632110,37.7502627,1414.5,1414.4,0.49944411]
[1673582632735,36.69115387,1414.5,1414.4,0.49944411]
[1673582633653,37.7502627,1414.5,1414.4,0.49944411]
[1673582634182,39.02924034,1414.5,1414.4,0.49944411]
[1673582634395,39.02924195,1414.5,1414.4,0.49944411]
[1673582635813,25.10773468,1414.5,1414.4,1.54831565]
[1673582636657,25.10773468,1414.5,1414.4,0.49944411]
[1673582637382,25.10773468,1414.5,1414.4,1.54831565]
[1673582638030,21.50489,1414.5,1414.4,1.54831565]
[1673582638713,14.43526,1414.5,1414.4,2.19947013]
[1673582638923,7.36563,1414.5,1414.4,2.19947013]
[1673582639372,7.36563,1414.5,1414.4,3.39447013]
[1673582639997,14.43526,1414.5,1414.4,2.74331565]
[1673582640620,14.43526,1414.5,1414.4,3.03831565]
[1673582641277,21.50489,1414.5,1414.4,3.03831565]
[1673582642548,21.50489,1414.5,1414.4,1.98944411]
[1673582642927,21.50489,1414.5,1414.4,0.49944411]
[1673582643347,25.47050588,1414.5,1414.4,0.49944411]
[1673582643555,29.0768386,1414.5,1414.4,0.49944411]
[1673582645486,29.0768386,1414.5,1414.4,0.49633759]
[1673582645858,29.0768386,1414.5,1414.4,0.49635482]
[1673582646068,30.13594743,1414.5,1414.4,0.02909313]
[1673582646323,29.0768386,1414.5,1414.4,0.02909313]
[1673582646538,30.13594743,1414.5,1414.4,0.02909313]
[1673582647449,29.0768386,1414.5,1414.4,0.02909313]
[1673582647642,30.13594743,1414.5,1414.4,0.02909313]
[1673582648233,29.0768386,1414.5,1414.4,0.02909313]
[1673582649461,30.13594743,1414.5,1414.4,0.02909313]
[1673582651169,34.625936,1414.5,1414.4,0.02909313]
[1673582653315,33.03578609,1414.5,1414.4,0.02909313]
[1673582653778,34.625936,1414.5,1414.4,0.02909313]
[1673582658420,33.56682717,1414.5,1414.4,0.02688574]
[1673582658943,37.17273148,1414.5,1414.4,0.02688574]
[1673582659104,47.40408157,1414.5,1414.4,0.02688574]
[1673582660181,48.99260098,1414.5,1414.4,0.02688574]
[1673582660378,47.40408157,1414.5,1414.4,0.02688574]
[1673582661961,48.99226675,1414.5,1414.4,0.02688574]
[1673582663517,48.99197689,1414.5,1414.4,0.02688574]
[1673582663731,45.15607258,1414.5,1414.4,0.02688574]
[1673582663944,46.21461581,1414.5,1414.4,0.02688574]
[1673582664175,45.15607258,1414.5,1414.4,0.02688574]
[1673582665115,45.38607258,1414.5,1414.4,0.02688574]
[1673582666372,46.44445403,1414.5,1414.4,0.02688574]
[1673582666585,45.38607258,1414.5,1414.4,0.02688574]
[1673582666843,46.44446199,1414.5,1414.4,0.02688574]
[1673582667164,45.38607258,1414.5,1414.4,0.02688574]
[1673582668686,46.44437492,1414.5,1414.4,0.02688574]
[1673582669106,45.38607258,1414.5,1414.4,0.02688574]
[1673582669347,47.50297689,1414.5,1414.4,0.02688574]
[1673582669559,45.38607258,1414.5,1414.4,0.02688574]
[1673582674631,51.66889563,1414.5,1414.4,0.02688574]
[1673582675110,50.08100031,1414.5,1414.4,0.02688574]
[1673582675324,53.17128763,1414.5,1414.4,0.02688574]
[1673582675740,53.17119278,1414.5,1414.4,0.02688574]
[1673582676373,51.58400031,1414.5,1414.4,0.02688574]
[1673582676798,53.17134615,1414.5,1414.4,0.02688574]
[1673582679057,49.00542741,1414.5,1414.4,0.02688574]
[1673582679271,47.41808157,1414.5,1414.4,0.02320101]
[1673582679773,51.58400031,1414.5,1414.4,0.02320101]
[1673582681528,54.23827835,1414.5,1414.4,0.02320101]
[1673582681950,51.58400031,1414.5,1414.4,0.02320101]
[1673582682741,47.41808157,1414.5,1414.4,0.02320101]
[1673582683050,51.58400031,1414.5,1414.4,0.02320101]
[1673582683423,54.23827835,1414.5,1414.4,0.02320101]
[1673582684498,50.07235961,1414.5,1414.4,0.02320101]
[1673582685029,47.41808157,1414.5,1414.4,0.02320101]
[1673582687466,45.91508157,1414.5,1414.4,0.02320101]
[1673582688216,47.50366497,1414.5,1414.4,0.02320101]
[1673582688423,45.91508157,1414.5,1414.4,0.02320101]
[1673582689347,47.50366546,1414.5,1414.4,0.02320101]
[1673582689544,45.91508157,1414.5,1414.4,0.02320101]
[1673582690369,47.50405573,1414.5,1414.4,0.02320101]
[1673582690791,45.91508157,1414.5,1414.4,0.02320101]
[1673582691428,47.50406287,1414.5,1414.4,0.02320101]
[1673582691727,47.50422936,1414.5,1414.4,0.02320101]
[1673582692297,47.5042101,1414.5,1414.4,0.02320101]
[1673582693497,45.91508157,1414.5,1414.4,0.02320101]
[1673582694288,48.56935961,1414.5,1414.4,0.02320101]
[1673582695083,54.50911079,1414.5,1414.4,0.02320101]
[1673582695464,54.50911259,1414.5,1414.4,0.02320101]
[1673582696129,45.91508157,1414.5,1414.4,0.02320101]
[1673582696285,48.56935961,1414.5,1414.4,0.02320101]
[1673582696962,45.91508157,1414.5,1414.4,0.02320101]
[1673582697598,48.56935961,1414.5,1414.4,0.02320101]
[1673582697920,54.50907808,1414.5,1414.4,0.02320101]
[1673582698443,45.91508157,1414.5,1414.4,0.02320101]
[1673582699801,48.56935961,1414.5,1414.4,0.02320101]
[1673582700390,54.50898161,1414.5,1414.4,0.02320101]
[1673582701228,52.3920773,1414.5,1414.4,0.02320101]
[1673582702597,56.55799604,1414.5,1414.4,0.02320101]
[1673582703132,56.55799604,1414.5,1414.4,0.02114865]
[1673582705447,56.55350081,1414.5,1414.4,0.02114865]
[1673582705656,53.903718,1414.5,1414.4,0.02114865]
[1673582706577,55.406718,1414.5,1414.4,0.02114865]
[1673582707741,58.05633966,1414.5,1414.4,0.02114865]
[1673582708102,53.89042092,1414.5,1414.4,0.02114865]
[1673582708330,53.8904336,1414.5,1414.4,0.02114865]
[1673582708838,51.24079926,1414.5,1414.4,0.02114865]
[1673582709051,55.406718,1414.5,1414.4,0.02114865]
[1673582709246,53.903718,1414.5,1414.4,0.02114865]
[1673582709459,56.55323672,1414.5,1414.4,0.02114865]
[1673582709844,52.38731798,1414.5,1414.4,0.02114865]
[1673582710209,56.55323672,1414.5,1414.4,0.02114865]
[1673582710405,52.38731798,1414.5,1414.4,0.02114865]
[1673582710579,56.55323672,1414.5,1414.4,0.02114865]
[1673582710789,52.38731798,1414.5,1414.4,0.02114865]
[1673582711046,49.73779926,1414.5,1414.4,0.02114865]
[1673582711580,52.38716058,1414.5,1414.4,0.02114865]
[1673582711733,49.73779926,1414.5,1414.4,0.02114865]
[1673582713568,53.903718,1414.5,1414.4,0.02114865]
[1673582713956,52.38709215,1414.5,1414.4,0.02114865]
[1673582715456,49.73779926,1414.5,1414.4,0.02114865]
[1673582720188,53.903718,1414.5,1414.4,0.02114865]
[1673582721096,49.73779926,1414.5,1414.4,0.02114865]
[1673582721874,52.38636104,1414.5,1414.4,0.02114865]
[1673582722023,49.73779926,1414.5,1414.4,0.02114865]
[1673582722816,52.38636945,1414.5,1414.4,0.02114865]
[1673582725868,49.73779926,1414.5,1414.4,0.02114865]
[1673582727125,52.38627899,1414.5,1414.4,0.02114865]
[1673582727332,52.38627899,1414.5,1414.4,0.01778195]
[1673582727542,49.73779926,1414.5,1414.4,0.01778195]
[1673582729229,52.38621066,1414.5,1414.4,0.01778195]
[1673582729387,49.73779926,1414.5,1414.4,0.01778195]
[1673582731321,52.38635289,1414.5,1414.4,0.01778195]
[1673582732060,52.92295625,1414.5,1414.4,0.01778195]
[1673582732502,21.21039,1414.4,1414.3,0.02980062]
[1673582732641,43.30744672,1414.4,1414.3,0.02980062]
[1673582733352,43.75870105,1414.4,1414.3,0.02980062]
[1673582747596,45.87891818,1414.4,1414.3,0.02980062]
[1673582747812,43.75870105,1414.4,1414.3,0.02980062]
[1673582755950,43.75870105,1414.4,1414.3,0.02628981]
[1673582757042,53.67790105,1414.4,1414.3,0.02628981]
[1673582762364,53.67540639,1414.4,1414.3,0.02628981]
[1673582765505,53.67540639,1414.4,1414.1,0.03546483]
[1673582765506,28.29287864,1414.2,1414.1,0.03546483]
[1673582765662,41.83755785,1414.2,1414.1,0.03546483]
[1673582765872,43.68575789,1414.2,1414.1,0.03546483]
[1673582766445,43.15428492,1414.2,1414.1,0.03546483]
[1673582766607,37.21466292,1414.2,1414.1,0.03546483]
[1673582766818,38.80429429,1414.2,1414.1,0.03546483]
[1673582770190,30.67315694,1414.2,1414.1,1.52946483]
[1673582770396,30.44315694,1414.2,1414.1,1.52946483]
[1673582770713,27.23532553,1414.2,1414.1,1.52946483]
[1673582771140,23.62899281,1414.2,1414.1,1.52946483]
[1673582771360,23.62899281,1414.2,1414.1,1.8352578]
[1673582772646,23.85899281,1414.2,1414.1,1.8352578]
[1673582773254,9.71673281,1414.2,1414.1,1.8352578]
[1673582773434,2.64560281,1414.2,1414.1,3.3382578]
[1673582773644,1.29796419,1414.2,1414.1,3.65638465]
[1673582773896,1.29796419,1414.2,1414.1,3.65638283]
[1673582774111,1.29796419,1414.2,1414.1,3.65639017]
[1673582774303,8.36909419,1414.2,1414.1,3.65637986]
[1673582774512,9.8676218,1414.2,1414.1,3.3382578]
[1673582774854,7.14548864,1414.2,1414.1,3.65637475]
[1673582775705,7.14548864,1414.2,1414.1,0.03546483]
[1673582775706,27.38620923,1414.2,1414.1,0.03546483]
[1673582775920,31.32730245,1414.2,1414.1,0.03546483]
[1673582776302,28.67621658,1414.2,1414.1,0.03546483]
[1673582776506,38.98721658,1414.2,1414.1,0.03546483]
[1673582776728,40.60541662,1414.2,1414.1,0.03546483]
[1673582777155,45.63814387,1414.2,1414.1,0.03546483]
[1673582781499,45.58814387,1414.2,1414.1,0.03546483]
[1673582782715,48.23922974,1414.2,1414.1,0.03546483]
[1673582787864,45.58814387,1414.2,1414.1,0.03546483]
[1673582788140,48.23922974,1414.2,1414.1,0.03546483]
[1673582788293,45.58814387,1414.2,1414.1,0.03546483]
[1673582788919,47.17615054,1414.2,1414.1,0.03546483]
[1673582789584,42.14342329,1414.2,1414.1,0.03546483]
[1673582789765,41.08244041,1414.2,1414.1,0.03546483]
[1673582791243,41.08250562,1414.2,1414.1,0.03546483]
[1673582791563,40.02381039,1414.2,1414.1,0.03546483]
[1673582791744,41.08253962,1414.2,1414.1,0.03546483]
[1673582792200,41.08254375,1414.2,1414.1,0.03546483]
[1673582792392,14.16661864,1414.2,1414.1,1.70848634]
[1673582792735,0.066,1414.2,1414.1,3.21148634]
[1673582792911,9.85844289,1414.3,1414.1,3.21148634]
[1673582792912,1.12473336,1414.3,1414.1,3.21148634]
[1673582793123,8.12942336,1414.3,1414.2,2.995]
[1673582793344,9.62529808,1414.3,1414.2,2.995]
[1673582793524,9.62529808,1414.3,1414.2,2.895]
[1673582794000,9.85529808,1414.3,1414.2,2.895]
[1673582794539,23.99661808,1414.3,1414.2,1.503]
[1673582794834,25.72555761,1414.3,1414.2,1.503]
[1673582795214,27.31356428,1414.3,1414.2,1.503]
[1673582797204,25.72555761,1414.3,1414.2,1.503]
[1673582797645,27.31356428,1414.3,1414.2,1.503]
[1673582798921,25.72555761,1414.3,1414.2,1.503]
[1673582799740,27.31356428,1414.3,1414.2,1.503]
[1673582800268,25.72355761,1414.3,1414.2,1.503]
[1673582800519,25.72555761,1414.3,1414.2,1.503]
[1673582800920,27.31356428,1414.3,1414.2,1.503]
[1673582801251,25.72555761,1414.3,1414.2,1.503]
[1673582801623,25.72321492,1414.3,1414.2,1.503]
[1673582801829,23.99661808,1414.3,1414.2,3.15910934]
[1673582802046,23.99661808,1414.3,1414.2,3.003]
[1673582802273,25.72314168,1414.3,1414.2,3.003]
[1673582802482,23.99661808,1414.3,1414.2,3.003]
[1673582802717,27.31122676,1414.3,1414.2,3.003]
[1673582803776,22.56674336,1414.3,1414.2,3.003]
[1673582803938,0.296,1414.3,1414.2,3.31570934]
[1673582804152,0.23,1414.3,1414.2,3.31570934]
[1673582805211,7.30063,1414.3,1414.2,3.31570934]
[1673582805419,7.36663,1414.3,1414.2,3.31570934]
[1673582805667,7.36663,1414.3,1414.2,3.003]
[1673582806896,0.296,1414.3,1414.2,3.003]
[1673582807109,0.23,1414.3,1414.2,3.003]
[1673582812253,0.23,1414.3,1414.2,6.003]
[1673582812477,0.51725433,1414.4,1414.2,6.003]
[1673582812478,0.45125433,1414.4,1414.2,13.14013]
[1673582812656,0.45125433,1414.4,1414.3,5.308013]
[1673582812872,0.68125433,1414.4,1414.3,5.374013]
[1673582813639,0.68125433,1414.4,1414.3,12.444643]
[1673582813853,0.45125433,1414.4,1414.3,12.444643]
[1673582815473,0.45125433,1414.4,1414.3,13.934643]
[1673582815667,0.45125433,1414.4,1414.3,16.934643]
[1673582816481,0.45125433,1414.4,1414.3,16.95627842]
[1673582817773,0.44845549,1414.4,1414.3,16.95627842]
[1673582817946,0.44845549,1414.4,1414.3,14.45627842]
[1673582819044,0.44845549,1414.4,1414.3,24.02690842]
[1673582820269,0.44845549,1414.4,1414.3,21.52690842]
[1673582820893,0.44845549,1414.4,1414.3,14.45627842]
[1673582821776,0.44845549,1414.4,1414.3,6.07163542]
[1673582821990,0.67845549,1414.4,1414.3,6.07163542]
[1673582824722,0.67845549,1414.4,1414.3,8.57163542]
[1673582825156,0.67845549,1414.4,1414.3,6.07163542]
[1673582825322,0.67845549,1414.4,1414.3,8.57163542]
[1673582825532,0.67845549,1414.4,1414.3,6.07163542]
[1673582826103,0.44845549,1414.4,1414.3,11.64826542]
[1673582828162,0.44845549,1414.4,1414.3,13.64826542]
[1673582828373,0.44845549,1414.4,1414.3,11.64826542]
[1673582830468,0.44845549,1414.4,1414.3,4.556]
[1673582830676,0.44845549,1414.4,1414.3,4.49]
[1673582831151,0.44845549,1414.4,1414.3,4.492]
[1673582831463,0.44845549,1414.4,1414.3,4.49]
[1673582833442,0.44845549,1414.4,1414.3,25.70189]
[1673582833684,0.44845549,1414.4,1414.3,25.76789]
[1673582833845,0.44845549,1414.4,1414.3,28.59985514]
[1673582834066,0.44845549,1414.4,1414.3,28.62149056]
[1673582834384,0.44845549,1414.4,1414.3,21.4338071]
[1673582834599,0.44845549,1414.4,1414.3,20.54086056]
[1673582842513,0.44845549,1414.4,1414.3,20.43447577]
[1673582844829,0.44845549,1414.4,1414.3,21.48334731]
[1673582845001,0.44845549,1414.4,1414.3,22.93447577]
[1673582845213,0.44845549,1414.4,1414.3,23.82742231]
[1673582845561,0.44845549,1414.4,1414.3,30.89805231]